[Event "Skagerrak Kragero 2022"]
[Site "Kragero"]
[Date "2022.06.03"]
[Round "4.5"]
[White "Grave, Jacob Templen"]
[Black "Machlik, Monika"]
[Result "1-0"]
[ECO "E04"]
[WhiteElo "2227"]
[BlackElo "2134"]
[Annotator "TA"]
[PlyCount "187"]
[EventDate "2022.06.02"]
[EventType "tourn"]
[EventCountry "NOR"]
[SourceTitle "playchess.com"]
[Source "ChessBase"]
[SourceQuality "1"]
[TimeControl "5400+30"]

{[%evp 15,187,33,32,27,39,36,33,40,49,35,32,33,31,31,32,26,40,47,82,47,67,66,74,42,50,23,49,37,34,35,49,39,47,25,42,46,50,11,62,62,62,62,83,56,56,50,64,64,64,39,39,39,64,64,64,64,64,57,57,40,40,40,40,40,40,23,58,58,64,45,45,0,0,0,25,25,75,35,75,66,75,65,65,65,72,38,44,27,16,8,120,57,57,49,47,0,30,0,41,12,12,11,24,10,287,158,559,549,549,544,472,986,876,372,835,355,362,347,347,333,318,304,282,275,253,239,986,979,964,653,645,0,516,570,585,537,475,0,0,0,0,0,0,0,0,0,0,0,0,0,0,0,0,0,8,8,8,8,986,768,687,418,29983,29984,29990,29991,29991,29992,29998,8,29989,29990,29990,4134]} 1. d4 Nf6 2. c4 e6 3. g3 Bb4+ 4. Nd2 d5 5. Bg2 O-O 6. Ngf3 Nc6 7. Qc2 dxc4 8. Qxc4 Qd5 {8...Bd6 is not played anymore.} 9. O-O {E04: Open Catalan: 5 Nf3.} Bxd2 10. Qxd5 exd5 11. Bxd2 {White is slightly better.} Bg4 12. e3 Ne4 {Strongly threatening ...Bxf3.} 13. Be1 Rfe8 {[#]} 14. Rc1 $146 ({Predecessor:} 14. h3 Bxf3 15. Bxf3 f5 16. Rc1 a5 17. Be2 Re7 18. Bd3 g6 19. Kg2 Kf7 20. a3 {1-0 (58) Sumets,A (2596)-Lacroix,B (2189) Charleroi 2015}) 14... Rac8 15. h3 Bf5 16. g4 Be6 17. Nd2 Nxd2 18. Bxd2 Ne7 19. Rc2 c6 20. Rfc1 a6 21. f3 Rcd8 22. Kf2 Nc8 23. Bf1 Nd6 24. b3 f5 25. Bd3 Rf8 26. Kg3 Bc8 (26... h5 $11) 27. Bb4 $14 Rf6 28. g5 Rf7 29. Bxd6 Rxd6 {[%cal Bd8d6,Bd6e6,Be6e8,Be8a8][%mdl 32]} 30. Kf4 Re6 31. b4 (31. Bxf5 $2 Rxf5+ $1 {[%mdl 512]} 32. Kg3 Rxe3 $19) 31... Kf8 {[%cal Oe6e4]} 32. Bf1 ({Avoid the trap} 32. Bxf5 $2 Rxf5+ $1 {[%mdl 512]} 33. Kg3 Rxe3 $19) 32... Bd7 33. a4 {[%cal Ob4b5]} Re8 34. h4 Ra8 35. Ra1 Ke7 36. Rca2 Rff8 37. b5 axb5 38. axb5 Rxa2 39. Rxa2 {[%mdl 4096] Endgame KRB-KRB} Kd6 40. Rb2 Ra8 41. bxc6 bxc6 42. Bd3 g6 43. Rb7 {[%cal Oh4h5]} Ra3 44. Bb1 Ra8 {Prevents Rb8.} 45. h5 Ke6 (45... Ra5 $11 {keeps the balance.}) 46. Rb2 Be8 47. Bc2 Rc8 48. Bd3 Ra8 49. Rb7 {White is more active.} Bd7 $1 50. Bf1 Ra1 51. Bh3 (51. Bg2 $5 {[%cal Rb7b8]}) 51... Rh1 52. Kg3 Re1 (52... Rg1+ $11 53. Bg2 gxh5) 53. Kf2 (53. Rb8 $1 $16 {[%cal Rb8h8]}) 53... Rh1 54. Kg2 Re1 55. Kf2 Rh1 56. Kg2 (56. hxg6 $5 hxg6 57. Bf1 $11) 56... Re1 57. Rb8 {aiming for h6.} Rxe3 58. Rh8 {Black must now prevent h6.} gxh5 59. Rxh7 Kd6 $2 {[%mdl 8192]} (59... c5 $1 $11) 60. Rxh5 (60. Kg3 $18) 60... Re2+ $2 (60... c5 $16) 61. Kg3 $18 c5 62. Rh6+ Re6 63. dxc5+ (63. g6 $142 Rf6 64. g7 f4+ 65. Kf2 Rxh6 66. g8=Q $1 Rxh3 67. Qf8+ Kc6 68. Qxc5+ Kb7 69. Qxd5+ Kc8 70. Qc5+ Kb7 71. Qe7) 63... Kxc5 64. Kf4 (64. Rxe6 $142 Bxe6 65. Kf4) 64... d4 $2 (64... Re8 65. Bf1 d4) 65. Bxf5 (65. Rxe6 $142 Bxe6 66. Bf1 (66. Bxf5 Bxf5 67. Kxf5 d3 $11)) 65... Rxh6 66. gxh6 Bxf5 67. Kxf5 {White wants to mate with h7. KPP-KP} d3 68. h7 d2 69. h8=Q {White threatens Qd8 and mate.} d1=Q {Inhibits Qd8. KQ-KQ} 70. Qe5+ Kb6 $2 (70... Kc4 71. Qe4+ Kc5) 71. f4 Qh5+ 72. Ke6 Qe8+ 73. Kd5 $2 (73. Kf6 $1 $18 Qa8 74. Qd6+ Kb5 75. f5) 73... Qc6+ $2 {[%mdl 8192]} (73... Qa8+ $1 $11 74. Ke6 Qg8+ 75. Ke7 Qh7+ 76. Kf6 Qh4+ 77. Ke6 Kc6) 74. Kd4 Qa4+ {[#]} 75. Ke3 $1 {Intending Qd4+ and mate.} Qb3+ {[#]} 76. Kf2 $2 (76. Ke4 $1 $18 {Threatening mate with Qb8+.} Qc2+ 77. Kf3) 76... Kc6 $11 77. Qd4 Qh3 78. Qe4+ Kd6 79. Qe5+ Kd7 80. f5 Qh4+ 81. Kf3 Qh3+ 82. Ke2 Qg2+ 83. Ke3 Qg1+ 84. Kf3 Qd1+ 85. Kf4 Qd2+ 86. Kg4 Qg2+ $2 {[%mdl 8192]} (86... Qh6 $11 87. f6 Qg6+ 88. Kf4 Qh6+ 89. Kg4 Qg6+ 90. Kh4 (90. Kf4 Qh6+ 91. Kg4 $11) 90... Qh6+ 91. Kg4) 87. Kh5 $18 Qg8 88. Qf6 Ke8 (88... Qd5 $18 89. Kg6 Ke8 90. Qh8+ Kd7) 89. Qc6+ Ke7 90. f6+ Kf7 91. Qd5+ Kf8 92. Qxg8+ Kxg8 93. Kg6 Kh8 {[%emt 2:15:20]} 94. Kf7 {[%emt 2:14:30] Weighted Error Value: White=0.16 (very precise) /Black=0.35} (94. Kf5 $142 Kh7 95. Ke6 Kh6 96. f7 Kg7 97. Ke7 Kh6 98. f8=Q+ Kg5 99. Qf3) 1-0

[Event "Skagerrak Kragero 2022"]
[Site "Kragero"]
[Date "2022.06.04"]
[Round "5.1"]
[White "Machlik, Monika"]
[Black "Rakhmangulova, Anastasiya"]
[Result "0-1"]
[ECO "A42"]
[WhiteElo "2134"]
[BlackElo "2245"]
[Annotator "TA"]
[PlyCount "134"]
[EventDate "2022.06.02"]
[EventType "tourn"]
[EventCountry "NOR"]
[SourceTitle "playchess.com"]
[Source "ChessBase"]
[SourceQuality "1"]
[TimeControl "5400+30"]

{[%evp 29,134,-6,-10,-10,0,-20,-22,-21,-27,-19,-20,-20,-20,-21,-20,-20,-20,-20,-8,-19,0,-17,-6,-12,-12,-14,-6,-7,0,0,0,-9,8,8,8,0,5,5,5,0,0,0,8,6,39,0,0,0,0,-1,0,-8,0,0,0,0,0,-8,0,0,0,-14,-1,-8,-1,-156,-147,-136,-8,-9,-8,-51,-51,-51,-8,-8,-8,-193,-220,-208,-206,-200,-197,-122,-159,-165,-197,-477,-474,-666,-606,-749,-715,-650,-930,-690,-552,-29982,-29983,-29983,-29984,-29983,-29984,-29986,-29987,-29993,-29992]} 1. d4 g6 2. c4 Bg7 3. Nc3 d6 4. e4 e5 5. Nge2 Nc6 6. Be3 exd4 7. Nxd4 Nge7 {[%cal Bg8e7,Be7f5,Bf5e3][%mdl 32]} 8. Be2 O-O 9. O-O f5 10. exf5 Bxd4 11. Bxd4 Nxf5 12. Be3 Nxe3 13. fxe3 Rxf1+ 14. Qxf1 Be6 15. Qf4 Qe7 16. Rf1 {A42: Modern Defence: Averbakh Variation.} a6 17. h3 Rf8 18. Qxf8+ {The position is equal.} (18. Qe4 {keeps more tension.} Rxf1+ 19. Bxf1 Kf8 20. b3) 18... Qxf8 19. Rxf8+ Kxf8 $11 {[%mdl 4096] Endgame KBN-KBN} 20. b3 {[#]} Ke7 $146 ({Predecessor:} 20... Ne5 21. Kf2 Ke7 22. Bf3 c6 23. Be4 b5 24. cxb5 axb5 25. b4 Bc4 26. a4 bxa4 27. Nxa4 {0-1 (102) Amarita,A (2049)-Patrascu,C (2295) Eforie Nord 2016}) 21. Bf3 Kf6 22. Kf2 Ke5 23. Ke2 g5 24. Kd2 h6 25. Nd1 Bf5 26. Nf2 Nd8 27. e4 Bg6 28. Ke3 h5 {Against Ng4+} 29. Nd3+ Kf6 30. c5 dxc5 31. Nxc5 a5 32. Nd7+ Ke7 33. Ne5 Be8 34. g3 b6 35. h4 Kf6 36. Nd3 g4 37. Be2 Nc6 38. Kf4 Nd4 39. Bd1 Bb5 40. Nf2 Ne6+ 41. Ke3 Ke5 42. Bc2 Nc5 43. Bb1 Bc6 44. Bc2 b5 45. Bb1 b4 46. Bc2 Bb5 47. Bb1 $2 ({White should try} 47. Bd1 $11) 47... a4 $17 {Black is more active.} 48. bxa4 Bxa4 (48... Nxa4 $17 {Threatens to win with ...c5.} 49. Bd3 Be8) 49. Bd3 $11 Bc6 50. Bc2 Be8 51. Bb3 {Inhibits Bf7.} c6 52. Bc4 Bg6 53. Bd3 $2 (53. Bb3 $11 {and White stays safe.}) 53... Bf7 $19 54. Bb1 Bc4 55. Nd1 {[#]} Nb7 $1 56. Nb2 Nd6 57. Bc2 c5 {[%cal Bc6c5,Bc5c4,Bc4c3][%mdl 32]} ({Resist} 57... Bxa2 58. Nd3+ Ke6 59. Nxb4 $18) 58. Bb1 $2 (58. Na4 {was the only defense.} Nb7 59. Nb2 Bxa2 60. Nd3+ Ke6 61. Ba4) 58... Bb5 59. Bc2 (59. Bd3 $142 Bc6 60. Nc4+ Nxc4+ 61. Bxc4 Bxe4 62. Bf7) 59... c4 60. Nd1 c3 {[#] And now ...Nc4+ would win.} 61. Nf2 Nc4+ 62. Ke2 Na3+ 63. Kd1 Nxc2 {Black mates.} 64. Kxc2 Kd4 65. Kc1 Bc4 66. Kb1 Ke3 67. Nxg4+ {[%emt 2:03:32]} hxg4 {[%emt 1:58:43] Weighted Error Value: White=0.29 (precise) /Black=0.09 (flawless)} 0-1

[Event "Skagerrak Kragero 2022"]
[Site "Kragero"]
[Date "2022.06.04"]
[Round "5.2"]
[White "Tarleva, Diana"]
[Black "Grave, Jacob Templen"]
[Result "1/2-1/2"]
[ECO "B18"]
[WhiteElo "2160"]
[BlackElo "2227"]
[Annotator "TA"]
[PlyCount "24"]
[EventDate "2022.06.02"]
[EventType "tourn"]
[EventCountry "NOR"]
[SourceTitle "playchess.com"]
[Source "ChessBase"]
[SourceQuality "1"]
[TimeControl "5400+30"]

{[%evp 13,24,30,33,-6,0,11,17,6,13,6,0,0,0]} 1. e4 c6 2. d4 d5 3. Nc3 {[%cal Bb1c3,Bc3e4,Be4g3][%mdl 32]} dxe4 4. Nxe4 Bf5 5. Ng3 Bg6 6. N1e2 e6 7. Nf4 Qc7 8. Bd3 {B18: Classical Caro-Kann: 4...Bf5 sidelines.} Bxd3 {The position is equal.} 9. Nxd3 Nf6 {[#]} 10. Bf4 $146 ({Predecessor:} 10. O-O Nbd7 11. c3 Bd6 12. Bd2 O-O 13. Qf3 c5 14. dxc5 Nxc5 15. Nxc5 Bxc5 16. Bf4 {½-½ (24) Krjuchkova,E (2170)-Marjina,A (2025) Novokuznetsk 2016}) 10... Bd6 11. Bxd6 Qxd6 12. c3 {[%emt 0:15:00]} Nbd7 {[%emt 0:24:25] An uneventful encounter.  Weighted Error Value: White=0.12 (very precise) /Black=0.03 (flawless)} 1/2-1/2

[Event "Skagerrak Kragero 2022"]
[Site "Kragero"]
[Date "2022.06.04"]
[Round "5.3"]
[White "Gaboyan, Susanna"]
[Black "Sagafos, Magne"]
[Result "1/2-1/2"]
[ECO "A50"]
[WhiteElo "2247"]
[BlackElo "2361"]
[Annotator "TA"]
[PlyCount "129"]
[EventDate "2022.06.02"]
[EventType "tourn"]
[EventCountry "NOR"]
[SourceTitle "playchess.com"]
[Source "ChessBase"]
[SourceQuality "1"]
[TimeControl "5400+30"]

{[%evp 14,129,25,3,3,-2,9,-37,-43,-63,-47,-50,-43,-47,-41,-39,-38,-47,-46,-46,-55,-55,0,0,0,-3,0,0,0,0,0,0,0,0,0,-12,0,-15,-19,-23,-12,-16,-22,-75,-70,-70,-77,-64,-67,-74,-40,-55,-55,-63,-47,-155,-154,-147,-154,-154,-147,-461,-439,-559,-442,-381,-120,-124,-124,-228,-213,-758,-758,-670,-640,-1006,-854,-979,-942,-556,-1090,-1090,-731,-1087,-1056,-981,-899,-1106,-1058,-870,-702,-5304,-5305,-5277,-4618,-5284,-5266,-5177,-5150,-5050,-4968,-4590,-2493,-4134,-2892,-5162,-5162,-4419,-4431,-1347,-1312,-623,0,0,0,0,0,0]} 1. d4 Nf6 2. Nf3 g6 3. g3 b6 4. Bg2 Bb7 5. O-O Bg7 6. c4 O-O 7. Nc3 {7.Re1 is a critical line.} Ne4 8. Qc2 Nxc3 {A50: Queen's Fianchetto Defence (1 d4 Nf6 2 c4 b6).} 9. Qxc3 c5 10. e3 (10. Rd1 $1 $11) 10... Be4 $15 {Black is slightly better.} 11. Qd2 Nc6 12. d5 {[#]} Na5 $146 ({Predecessor:} 12... Bxf3 13. Bxf3 Ne5 14. Be2 f5 15. Qc2 Nf7 16. f4 Nd6 17. Bf3 Qc7 18. Bd2 Rae8 {½-½ (31) Cejic,D (2225)-Zivkovic,V (2165) Zlatibor 1989}) 13. Qe2 b5 14. Nd2 Bxg2 15. Kxg2 Nxc4 16. Nxc4 bxc4 17. Qxc4 Qb6 (17... Qa5 $1 $15) 18. Rb1 $11 Rfb8 19. Bd2 {Inhibits Qa5.} Qb5 20. Rfc1 d6 21. b4 {[%cal Rb4c5]} Qxc4 22. Rxc4 a5 {[%cal Ba7a5,Ba5a4,Ba4a3][%mdl 32]} 23. b5 a4 $1 24. Kf3 Rb6 25. Ke2 a3 26. Rb3 Rab8 27. Ra4 Bb2 28. Bc3 (28. Kd3 $11) 28... Bxc3 $17 29. Rxc3 Rxb5 30. Rcxa3 {[%mdl 4096] Endgame KRR-KRR} Rb2+ 31. Kf3 Kg7 32. Ra8 Rxa8 33. Rxa8 $15 {KR-KR} h5 34. h4 (34. a4 $15) 34... f5 $1 $17 35. a4 Kf6 $1 36. a5 Ra2 $1 37. a6 $2 {[%mdl 8192]} (37. Ra7 $17 {is more resistant.}) 37... Ke5 $19 38. a7 Kxd5 39. Kf4 Ke6 $2 ({Worse is} 39... c4 40. Kg5 $17) (39... Kc4 $1 $19 {[%cal Rc4d3] ...Kd3 is the strong threat.} 40. e4 Kd3) 40. Kg5 {[#]} Kf7 ({Not} 40... c4 41. Kxg6 Kd7 42. Rb8 (42. Kxh5 c3 $17) 42... Rxa7 43. Kxf5 $15) 41. Kh6 (41. f3 $17 {keeps fighting.}) 41... c4 42. Rc8 $2 (42. Kg5) 42... Rxa7 43. Rxc4 Ra2 44. Rf4 e5 45. Rb4 Rxf2 46. Rb7+ Ke6 ({Stronger than} 46... Kf6 47. Rg7 $17) 47. Rg7 Kd5 48. Rxg6 Rf3 49. Kxh5 Rxe3 {White must now prevent ...Rf3.} 50. Rg5 Ke4 51. Kg6 {[#]} f4 $1 52. h5 Rxg3 53. h6 Rh3 54. Rh5 Rxh5 55. Kxh5 {KP-KP} f3 56. h7 f2 57. h8=Q f1=Q {KQ-KQ} 58. Qa8+ d5 {aiming for ...Qf7+.} 59. Kg5 Qf5+ 60. Kh6 Qf6+ 61. Kh7 Qf7+ 62. Kh8 Kf4 $2 (62... Qd7 $19 63. Qa2 Qh3+ 64. Kg7 d4) 63. Qa4+ $1 $11 {The position is equal.} Kf5 {( -> ...Qh5+)} 64. Qf4+ Ke6 {[%emt 2:01:18]} 65. Qxe5+ $1 {[%emt 2:00:47] Weighted Error Value: White=0.87/Black=0.15 (very precise)} 1/2-1/2

[Event "Skagerrak Kragero 2022"]
[Site "Kragero"]
[Date "2022.06.04"]
[Round "5.4"]
[White "Hryzlova, Sofiia"]
[Black "Doluhanova, Evgeniya"]
[Result "1-0"]
[ECO "A13"]
[WhiteElo "2157"]
[BlackElo "2270"]
[Annotator "TA"]
[PlyCount "127"]
[EventDate "2022.06.02"]
[EventType "tourn"]
[EventCountry "NOR"]
[SourceTitle "playchess.com"]
[Source "ChessBase"]
[SourceQuality "1"]
[TimeControl "5400+30"]

{[%evp 9,127,11,6,5,8,6,9,14,12,10,10,7,11,0,8,0,0,9,6,0,5,0,0,0,7,8,18,25,13,16,22,0,0,0,0,0,38,0,30,0,26,30,27,25,52,58,76,79,76,76,81,43,52,54,87,97,75,93,85,67,87,12,284,270,260,128,116,125,131,127,134,120,154,147,233,193,147,12,106,110,172,188,176,90,144,115,439,121,159,97,109,95,118,46,315,304,508,508,692,613,979,1221,1125,1099,1150,933,1361,1298,2608,2362,5125,5122,5114,5110,29982,29983,29981,29981,29983,29983]} 1. Nf3 {Anton Guijarro,David} Nf6 2. c4 e6 3. g3 d5 4. Bg2 dxc4 5. Qa4+ Bd7 6. Qxc4 {A13: English Opening: 1...e6.} c5 7. Ne5 Qc8 8. Qd3 $1 {The position is equal. 8.Qd3 scores better than 8.0-0.} Nc6 9. Nxd7 Nxd7 10. O-O Be7 11. Nc3 O-O 12. b3 Rd8 13. Bb2 Nf6 14. Qc2 Nb4 15. Qc1 Qd7 16. Rd1 Rac8 17. d3 {[#]} Nfd5 $146 ({Predecessor:} 17... h6 18. Rb1 b6 19. a3 Nc6 20. e3 Nd5 21. Ne4 Qc7 22. Qc2 Qb8 23. Qe2 Ne5 {1-0 (54) Anton Guijarro,D (2703)-Adams,M (2701) Biel 2020 CBM 197 [Anton Guijarro,David]}) 18. a3 Nc6 19. e3 {Against Nd4} Bf6 20. Ne4 Bxb2 21. Qxb2 b6 22. Rac1 Na5 23. Bf1 h6 24. Rd2 f5 25. Nc3 Nf6 {[%cal Oc5c4]} 26. Rcd1 e5 27. Bh3 (27. b4 {is more complex.} cxb4 28. axb4 Nc6 29. Bh3) 27... g6 28. b4 cxb4 29. axb4 Nc6 30. b5 Na5 31. e4 Kg7 32. exf5 gxf5 {[#]} 33. Ne4 $1 $36 {[%mdl 2048] Black is under strong pressure.} Qe6 34. f4 exf4 35. Rf1 (35. gxf4 $16 {Black must now prevent Rg2+.} Kf7 36. Nxf6 Qxf6 37. Qa2+ Qe6 38. Bxf5 Qxa2 39. Rxa2) 35... Rd5 $2 {[%mdl 8192]} (35... Nc4 $1 $11 {and Black is okay.} 36. dxc4 Qxe4) 36. Rxf4 $18 ({Don't take} 36. gxf4 $6 Rf8 37. Rg2+ Kh7 $18) 36... Qe5 {aiming for ...Qxb2.} (36... Re5 $2 37. Rdf2 Qe7 38. Bxf5 $18) 37. Rxf5 (37. Bxf5 $18 {has better winning chances.} Rxb5 38. Qxe5 Rc1+ 39. Kg2 Rxe5 40. Nxf6 Kxf6 41. Rdf2) 37... Qxb2 $16 38. Rxb2 Rxf5 39. Bxf5 Rd8 40. Kf2 Rd5 41. g4 Nd7 (41... h5 $16 {might work better.}) 42. Ke3 Ne5 43. Nc3 (43. Nd2 $16) 43... Rxd3+ 44. Bxd3 Nec4+ {Pair of Knights!} (44... Nac4+ $16 45. Bxc4 Nxc4+ 46. Kd4 Nxb2) 45. Kd4 $1 $18 Nxb2 {[%mdl 4096] Endgame KBN-KNN} 46. Be2 (46. Bc2 $1 $18) 46... Kg6 (46... Nb3+ $142 47. Kd5 Nc5) 47. h4 Kf6 $2 {[%mdl 8192]} (47... Nb3+ $16 48. Ke3 Nc1) 48. Kd5 $2 (48. Ne4+ $18 Ke6 49. Kc3 Na4+ 50. Kb4) 48... Ke7 49. h5 (49. Bf1 $142) 49... Nb3 $16 50. Ne4 {And now g5 would win.} Nc1 {[#]} 51. Bf1 ({Better is} 51. Bf3 $1 $16) 51... Ncd3 $2 {[%mdl 8192]} (51... Nd1 $1 $14) 52. Kd4 $18 Nf4 {[#]} (52... Ne1 {is a better defense.} 53. Be2 Na4) 53. Ke5 $1 Ne6 54. Nd6 Nd1 55. Nf5+ Kd7 56. Nxh6 Nf2 57. Be2 Nh3 58. Bc4 Neg5 59. Nf7 {Strongly threatening Nxg5.} Nf3+ 60. Kf6 Nf2 61. Be6+ Kc7 62. h6 {White mates.} Ne4+ 63. Kg6 Nd4 {[%emt 2:02:00]} 64. Bf5 {[%emt 1:59:42] Weighted Error Value: White=0.30/Black=0.60} 1-0

[Event "Skagerrak Kragero 2022"]
[Site "Kragero"]
[Date "2022.06.04"]
[Round "5.5"]
[White "Skaslien, Ingrid"]
[Black "Verbin, Valentina"]
[Result "0-1"]
[ECO "E48"]
[WhiteElo "1884"]
[BlackElo "2067"]
[Annotator "TA"]
[PlyCount "98"]
[EventDate "2022.06.02"]
[EventType "tourn"]
[EventCountry "NOR"]
[SourceTitle "playchess.com"]
[Source "ChessBase"]
[SourceQuality "1"]
[TimeControl "5400+30"]

{[%evp 13,98,0,0,-14,-2,-14,-15,-17,-15,-5,-12,-33,-42,-155,-152,-155,-157,-154,-154,-156,-153,-140,-149,-180,-147,-186,-179,-202,-212,-215,-219,-176,-161,-286,-293,-292,-236,-327,-337,-329,-325,-467,-357,-335,-325,-360,-380,-374,-381,-384,-391,-387,-223,-437,-425,-455,-463,-710,-700,-914,-893,-788,-627,-654,-639,-679,-681,-854,-854,-847,-843,-841,-833,-823,-812,-807,-796,-1502,-1396,-1452,-1395,-3022,-2093,-2464,-2438,-2086,-1989]} 1. d4 Nf6 2. c4 e6 3. Nc3 Bb4 4. e3 O-O 5. Bd3 {[%emt 1:31:21]} d5 {[%emt 1:31:25]} 6. cxd5 {[%emt 1:31:08]} exd5 {[%emt 1:31:40]} 7. Nge2 {[%emt 1:30:29]} Bd6 {[%emt 1:31:38]} 8. Bd2 {[%emt 1:28:50] is currently scoring better than 8.0-0. E48: Nimzo-Indian: Rubinstein: 5 Bd3 d5 including 6 Ne2, but excluding 6 a3.} b6 {[%emt 1:31:33]} 9. Rc1 {[%emt 0:18:44]} c5 {[%emt 1:31:31][%cal Bc7c5,Bc5c4][%mdl 32]} 10. O-O {[%emt 1:06:45] The position is equal.} Re8 {[%emt 1:24:05]} 11. Ng3 {[#]} Nc6 $146 (11... Bb7 12. Qf3 Nbd7 13. Nf5 Bf8 14. Qg3 g6 15. Rfd1 Re6 16. e4 dxe4 17. Bc4 Nh5) ({Predecessor:} 11... Bb7 12. Qf3 Nbd7 13. Nf5 Bf8 14. Qg3 g6 15. Rfd1 Re6 16. e4 dxe4 17. Bc4 Nh5 {0-1 (46) Grischuk,A (2777)-Ding,L (2805) Chess.com INT 2020}) 12. Nb5 Bf8 13. Bc3 (13. Nc3 $15) 13... c4 14. Bb1 {[%cal Oe3e4]} a6 {[%cal Ba7a6,Ba6a5,Ba5a4][%mdl 32]} 15. Na3 {[%emt 0:42:25][%cal Oe3e4]} b5 {[%emt 1:16:00][%cal Bb6b5,Bb5b4,Bb4b3][%mdl 32]} 16. Nc2 b4 {[%emt 0:22:31]} 17. Bd2 {[%emt 0:58:22]} a5 {[%emt 0:24:46] Black is more active.} 18. a3 {[%emt 0:31:33]} c3 {[%emt 0:31:11]} 19. bxc3 {[%emt 0:28:07]} b3 {[%emt 1:08:42]} (19... bxa3 20. e4) ({Not} 19... bxa3 20. e4 $15) 20. Ne1 a4 21. Bd3 Bxa3 22. Ra1 Qe7 $36 {[%mdl 2048] Keeping White busy.} 23. Bb5 (23. c4 $142) 23... Bd7 $19 24. Nf3 Reb8 25. Qe2 Na5 26. Bxd7 Nxd7 27. Nf5 (27. e4 $142 b2 28. Rad1) 27... Qf8 28. e4 b2 29. Rab1 Qe8 30. Bf4 Qxe4 31. Qxe4 dxe4 32. Bxb8 exf3 (32... Rxb8 $142 33. Nd2 Bf8 34. Nxe4 a3) 33. Bf4 $2 (33. Bd6 {was called for.} fxg2 34. Kxg2 Bxd6 35. Rxb2) 33... Nc4 {Pair of Knights! Black is clearly winning.} 34. Rfe1 Bf8 {[#] Hoping for ...a3.} 35. gxf3 (35. Bc1 $142 a3 36. Bxb2 axb2 37. Ne3) 35... a3 36. Ne3 Nd2 {[%csl LRb1,LRf3]} 37. Nc2 Nxf3+ 38. Kf1 Nxe1 39. Kxe1 Nb6 40. Kd1 Nc4 {[#] ...a2 is the strong threat.} 41. Nxa3 Rxa3 42. Kc2 Ra1 43. Rxb2 Nxb2 44. Kxb2 Rf1 45. Bg3 f5 {[%cal Of5f4] Strongly threatening ...f4!} 46. Kb3 g5 {Threatens to win with ...f4.} 47. Bc7 Rxf2 {aiming for ...f4.} 48. d5 Kf7 49. Kc4 {[%emt 1:53:07]} Rd2 {[%emt 1:18:11] White did not feel at home in the position after the opening.  Weighted Error Value: White=0.70/Black=0.13 (very precise)} 0-1

[Event "Skagerrak Kragero 2022"]
[Site "Kragero"]
[Date "2022.06.04"]
[Round "6.1"]
[White "Rakhmangulova, Anastasiya"]
[Black "Verbin, Valentina"]
[Result "1/2-1/2"]
[ECO "B99"]
[WhiteElo "2245"]
[BlackElo "2067"]
[Annotator "TA"]
[PlyCount "65"]
[EventDate "2022.06.02"]
[EventType "tourn"]
[EventCountry "NOR"]
[SourceTitle "playchess.com"]
[Source "ChessBase"]
[SourceQuality "1"]
[TimeControl "5400+30"]

{[%evp 22,65,58,57,59,59,51,47,66,66,57,47,67,40,43,29,37,30,40,18,20,18,29,0,0,0,0,0,0,0,0,-51,-55,-121,-63,-80,-82,-122,0,0,0,-116,-123,-124,0,0]} 1. e4 c5 2. Nf3 d6 3. d4 cxd4 4. Nxd4 Nf6 5. Nc3 a6 6. Bg5 e6 7. f4 Be7 8. Qf3 Qc7 9. O-O-O Nbd7 10. g4 {[%cal Bg2g4,Bg4g5][%mdl 32]} h6 11. Bxf6 Bxf6 12. h4 Nb6 $1 {[%mdl 4] is recently more successful than 12...Qb6. B99: Sicilian Najdorf: 6 Bg5 e6 7 f4 Be7 8 Qf3 Qc7 9 0-0-0 Nbd7.} 13. Be2 Bd7 14. g5 Bxd4 {White is slightly better.} 15. Rxd4 O-O-O 16. Rhd1 Bc6 {[#]} 17. g6 $146 {White is more active.} ({Predecessor:} 17. Qg3 hxg5 18. hxg5 g6 19. Kb1 Kb8 20. a3 d5 21. exd5 Nxd5 22. Nxd5 Rxd5 23. Rxd5 Bxd5 {½-½ (77) Nastore,P (2227)-Sahil,T (2201) Chess.com INT 2021}) 17... Rhf8 18. Qh3 Kb8 19. gxf7 Qxf7 20. e5 Nd5 {Prevents Qe3.} 21. Nxd5 dxe5 {[#]} 22. fxe5 Rxd5 23. Rxd5 Bxd5 24. Rf1 {Against Qf4+} Qe7 25. Rxf8+ Qxf8 $11 {[%mdl 4096] Endgame KQB-KQB} 26. Qf1 {Against Qf4+} (26. Qg3 $11) 26... Qc5 $1 $15 27. Kb1 (27. Qf4 $15) 27... Qe3 (27... g5 $17 28. hxg5 hxg5) 28. a4 Qxe5 29. Qf8+ {[#]} Ka7 (29... Kc7 $1 $17 30. Qf2 g5 31. hxg5 hxg5) 30. Qf2+ $11 Kb8 (30... Ka8 $11) 31. Qf8+ $17 {[#]} Kc7 $1 32. Qe7+ Kb8 {[%emt 1:02:24]} ({Black should try} 32... Kc6 $17 33. Qe8+ Kb6 34. Qd8+ Ka7) 33. Qf8+ {[%emt 1:28:26] Weighted Error Value: White=0.13 (very precise) /Black=0.13 (very precise)} 1/2-1/2

[Event "Skagerrak Kragero 2022"]
[Site "Kragero"]
[Date "2022.06.04"]
[Round "6.2"]
[White "Doluhanova, Evgeniya"]
[Black "Skaslien, Ingrid"]
[Result "1-0"]
[ECO "A06"]
[WhiteElo "2270"]
[BlackElo "1884"]
[Annotator "TA"]
[PlyCount "61"]
[EventDate "2022.06.02"]
[EventType "tourn"]
[EventCountry "NOR"]
[SourceTitle "playchess.com"]
[Source "ChessBase"]
[SourceQuality "1"]
[TimeControl "5400+30"]

{[%evp 10,61,0,0,9,-1,0,0,0,-6,0,0,1,-14,0,-14,0,-2,0,-3,0,0,27,21,18,22,25,14,33,16,18,5,5,-6,-12,-40,-14,-27,19,22,515,502,552,428,778,785,791,781,780,749,953,954,29997,29998]} 1. Nf3 d5 2. b3 Nf6 3. Bb2 e6 4. e3 Be7 5. Be2 O-O 6. O-O b6 {A06: Réti Opening: 1 Nf3 d5.} 7. d3 Nbd7 8. c4 Bb7 {The position is equal.} 9. cxd5 Nxd5 10. Nbd2 c5 11. Ne4 {[#]} Rc8 $146 ({Predecessor:} 11... f5 12. Nc3 Bf6 13. d4 Qe7 14. Bc4 Nxc3 15. Bxc3 Kh8 16. Rc1 e5 17. dxc5 Nxc5 {1-0 (74) Jovic,S (2312)-Milosavljevic,M (2177) Vrnjacka Banja 2004}) 12. Rc1 N7f6 13. Ng3 Qc7 14. a3 Qb8 15. Be5 Qa8 16. e4 Nc7 17. Qd2 Nd7 18. Bb2 Bf6 19. Bxf6 Nxf6 20. Qg5 h6 21. Qh4 Rfd8 22. e5 (22. Ne5 $5 {[%cal Rf2f4]}) 22... Nfe8 23. Rc4 {Strongly threatening Nh5.} Nd5 (23... Nb5 {deserves consideration.}) 24. Nh5 $11 {[%cal Oh5g7] Black should prevent Nxg7!} b5 $2 {[%mdl 8192] [#] This move loses the game for Black.} (24... f5 $11) 25. Rg4 $1 $18 {[%cal Oh5g7] Threatening mate with Nxg7!} Nc3 26. Bd1 Kf8 {[#]} (26... Nxd1 $142 27. Nxg7 Bxf3 28. gxf3 Rd4) 27. Nxg7 $1 {[%mdl 512]} Nxg7 28. Qxh6 Nxd1 29. Qxg7+ Ke8 30. Ng5 {[%csl Gg5][%cal Rg7f7]} Rd7 {[%emt 1:44:50]} 31. Qg8+ {[%emt 1:15:15] Weighted Error Value: White=0.06 (flawless) /Black=0.90} 1-0